[Event "FRA-ch Youth U12 2018"]
[Site "Agen"]
[Date "2018.04.18"]
[Round "5"]
[White "Mekhane, Adam"]
[Black "Toussaint, Florent"]
[Result "1-0"]
[ECO "C89"]
[WhiteElo "1907"]
[BlackElo "1424"]
[Annotator "NA"]
[PlyCount "63"]
[EventDate "2018.??.??"]
[EventType "swiss"]
[EventCountry "FRA"]
[SourceTitle "playchess.com"]
[Source "ChessBase"]
[SourceQuality "1"]
[TimeControl "5400+30"]

1. e4 {[%emt 0:00:00]} e5 {[%emt 0:00:03]} 2. Nf3 {[%emt 0:00:00]} Nc6 {[%emt 0:00:05]} 3. Bb5 {[%emt 0:00:00]} a6 4. Ba4 Nf6 {[%emt 0:00:18]} 5. O-O {[%emt 0:00:00]} b5 {[%emt 0:00:02]} 6. Bb3 {[%emt 0:00:00]} Be7 {[%emt 0:00:06] LiveBook: 1394 Games} 7. Re1 {[%emt 0:00:07]} O-O {[%emt 0:00:04]} 8. c3 {[%emt 0:00:05]} d5 {[%emt 0:00:03]} 9. d4 {[%emt 0:00:21]} dxe4 {[%emt 0:07:07] C89: Closed Ruy Lopez: Marshall Attack} 10. Nxe5 {[%emt 0:00:08]} Nxe5 {[%emt 0:01:09]} 11. dxe5 {[%emt 0:00:05]} Qxd1 {[%emt 0:03:06]} 12. Bxd1 {[%emt 0:00:02]} Nd7 {[%emt 0:01:51]} 13. Bc2 {[%emt 0:00:03] [#]} Nc5 $146 {[%emt 0:01:22]} ({Predecessor:} 13... Nxe5 14. Bxe4 Rb8 15. Bf4 Bd6 16. Bxe5 Bxe5 17. Bxh7+ Kxh7 18. Rxe5 {½-½ (28) Istratescu,A (2633)-Fressinet,L (2693) Plovdiv 2012}) 14. Bxe4 {[%emt 0:02:13]} Nxe4 15. Rxe4 Bb7 {[%emt 0:00:27]} 16. Re1 {[%emt 0:01:05]} Rfe8 {[%emt 0:01:10]} 17. Bf4 $14 {[%emt 0:05:38]} Rad8 {[%emt 0:02:32]} 18. Nd2 {[%emt 0:05:46]} Bc5 {[%emt 0:06:07]} 19. Nb3 {[%emt 0:08:18]} Bb6 {[%emt 0:00:37]} 20. a4 {[%emt 0:12:25]} Re6 {[%emt 0:05:22]} 21. a5 {[%emt 0:03:46]} Ba7 {[%emt 0:00:16]} 22. Rad1 {[%emt 0:04:01]} Rde8 {[%emt 0:01:22]} 23. Nd4 {[%emt 0:13:46]} R6e7 {[%emt 0:02:59]} 24. Nf5 {[%emt 0:03:25]} Re6 {[%emt 0:00:47]} 25. Rd3 g6 {[%emt 0:37:16]} 26. Nh6+ {[%emt 0:18:31]} Kg7 {[%emt 0:00:23]} 27. Ng4 {[%emt 0:00:56]} Kg8 {[%emt 0:01:52]} 28. Rd7 {[%emt 0:02:10]} R6e7 {[%emt 0:08:37]} 29. Nf6+ {[%emt 0:00:05]} Kh8 {[%emt 0:00:06]} 30. Rxe7 {[%emt 0:02:41]} Rxe7 {[%emt 0:00:10]} 31. Rd1 {[%emt 0:00:12]} Kg7 {[%emt 0:02:33]} 32. Rd8 {[%emt 0:00:29]} 1-0

[Event "FRA-ch Youth U12 2018"]
[Site "Agen"]
[Date "2018.04.18"]
[Round "5"]
[White "Zachary, Bastian"]
[Black "Droin, Augustin"]
[Result "0-1"]
[ECO "D08"]
[WhiteElo "1884"]
[BlackElo "1975"]
[Annotator "NA"]
[PlyCount "48"]
[EventDate "2018.??.??"]
[EventType "swiss"]
[EventCountry "FRA"]
[SourceTitle "playchess.com"]
[Source "ChessBase"]
[SourceQuality "1"]
[TimeControl "5400+30"]

1. d4 {[%emt 0:00:00]} d5 {[%emt 0:00:06]} 2. c4 {[%emt 0:00:00]} e5 {[%emt 0:00:17]} 3. dxe5 {[%emt 0:00:18]} d4 {[%emt 0:00:06]} 4. Nf3 {[%emt 0:00:19]} Nc6 {[%emt 0:00:06] LiveBook: 842 Games} 5. a3 {[%emt 0:00:41]} Be6 {[%emt 0:01:54]} 6. b3 {[%emt 0:08:54] D08: Albin Counter Gambit} (6. Nbd2 Nge7 7. Nb3 Nf5 8. Qd3 a5 9. Bf4 a4 10. Nbd2 Bc5 11. g3 Nfe7 12. Ne4 Bb6 13. Bg2 Ng6 14. O-O {1-0 (42) Nielsen,P (2710)-Tikkanen,H (2501) Sweden 2009}) 6... Nge7 {[%emt 0:03:00]} 7. Bb2 {[%emt 0:01:15]} Nf5 $146 {[%emt 0:00:07]} ({Predecessor:} 7... Ng6 8. Nxd4 Ncxe5 9. Nc3 Bc5 10. e3 O-O 11. Be2 Qg5 12. g3 Qe7 13. Nxe6 fxe6 {½-½ (41) Casanellas Ruano,L (2119)-Mora Amella,J (1818) Catalunya 2014}) 8. Nbd2 {[%emt 0:02:24]} a5 {[%emt 0:07:17]} 9. Rc1 {[%emt 0:04:25]} Be7 {[%emt 0:01:37]} 10. Ne4 {[%emt 0:02:28]} Qd7 {[%emt 0:01:20]} 11. h3 {[%emt 0:03:40]} O-O-O {[%emt 0:03:40]} 12. g3 {[%emt 0:05:39]} Rhg8 {[%emt 0:02:33]} 13. h4 {[%emt 0:01:48]} f6 {[%emt 0:04:48]} 14. exf6 {[%emt 0:00:11]} gxf6 {[%emt 0:00:03]} 15. Bh3 $2 {[%emt 0:04:12]} (15. Bg2 $14 {stays ahead.}) 15... Nxh4 {[%emt 0:01:23]} 16. Nxh4 {[%emt 0:04:32]} Bxh3 {[%emt 0:00:10]} 17. Qd2 {[%emt 0:04:12]} f5 {[%emt 0:01:03]} 18. Nc5 {[%emt 0:04:13]} Bxc5 {[%emt 0:00:26]} 19. Rxh3 {[%emt 0:00:04]} f4 {[%emt 0:00:16]} 20. Rh1 {[%emt 0:00:40]} fxg3 {[%emt 0:00:11]} 21. fxg3 {[%emt 0:00:14]} Rxg3 {[%emt 0:00:57]} 22. Nf3 {[%emt 0:02:35]} d3 {[%emt 0:01:44]} 23. Be5 {[%emt 0:01:28]} Rxf3 {[%emt 0:00:08]} 24. exf3 {[%emt 0:00:41]} Nxe5 {[%emt 0:00:05]} 0-1

[Event "FRA-ch Youth U12 2018"]
[Site "Agen"]
[Date "2018.04.18"]
[Round "5"]
[White "Lamaze, Simon"]
[Black "Patole, Noam"]
[Result "1-0"]
[ECO "C49"]
[WhiteElo "1850"]
[BlackElo "1903"]
[Annotator "NA"]
[PlyCount "91"]
[EventDate "2018.??.??"]
[EventType "swiss"]
[EventCountry "FRA"]
[SourceTitle "playchess.com"]
[Source "ChessBase"]
[SourceQuality "1"]
[TimeControl "5400+30"]

1. e4 {[%emt 0:00:00]} e5 {[%emt 0:00:18]} 2. Nf3 {[%emt 0:00:05]} Nc6 {[%emt 0:00:27]} 3. Nc3 {[%emt 0:00:21]} Nf6 {[%emt 0:00:39]} 4. Bb5 {[%emt 0:00:09]} Bb4 {[%emt 0:00:27]} 5. O-O {[%emt 0:00:17]} O-O {[%emt 0:00:17]} 6. d3 {[%emt 0:00:11]} Bxc3 {[%emt 0:00:18]} 7. bxc3 {[%emt 0:00:39]} d6 {[%emt 0:00:38]} 8. Bg5 {[%emt 0:01:07]} Qe7 {[%emt 0:02:38]} 9. Re1 {[%emt 0:02:11]} Bg4 {[%emt 0:03:20]} 10. h3 {[%emt 0:03:58] LiveBook: 3 Games} Bh5 {[%emt 0:01:24]} 11. d4 {[%emt 0:06:36]} Nd8 {[%emt 0:04:14]} 12. Bf1 {[%emt 0:02:16] C49: Four Knights: 4 Bb5 Bb4} (12. g4 Bg6 13. d5 h6 14. Bh4 Bh7 15. Bd3 b6 16. c4 Nb7 17. g5 hxg5 18. Bxg5 Kh8 19. Kh2 Rg8 20. Nh4 Qf8 21. Rg1 {½-½ (31) Wei,Y (2694)-Santos Latasa,J (2541) Leon 2016}) 12... Ne6 {[%emt 0:03:00]} 13. Bh4 {[%emt 0:07:55]} Bxf3 $146 {[%emt 0:18:01]} ({Predecessor:} 13... Nf4 14. Bg3 Ng6 15. Qd3 Bxf3 16. Qxf3 Rac8 17. Rab1 c6 18. h4 h5 19. Qf5 b6 {1-0 (38) Kharchenko,D (2009)-Manin,V (2208) St Petersburg 2012}) 14. Qxf3 {[%emt 0:01:53]} Nf4 {[%emt 0:04:27]} 15. g3 {[%emt 0:05:27]} Ng6 {[%emt 0:05:21]} 16. Bg5 {[%emt 0:03:36]} h6 {[%emt 0:00:12]} 17. Bc1 {[%emt 0:00:53]} Nd7 {[%emt 0:06:49]} 18. Bc4 {[%emt 0:02:57]} Kh8 {[%emt 0:00:36]} 19. Qh5 {[%emt 0:06:45]} Nf6 {[%emt 0:02:45]} 20. Qf3 {[%emt 0:02:14]} c6 {[%emt 0:02:03]} 21. Ba3 {[%emt 0:02:41]} Nh7 {[%emt 0:01:56]} 22. Qf5 {[%emt 0:04:07]} Rad8 {[%emt 0:01:59]} 23. Rad1 {[%emt 0:02:35]} Qg5 {[%emt 0:03:22]} 24. Qxg5 {[%emt 0:03:58]} Nxg5 {[%emt 0:00:11]} 25. Kg2 {[%emt 0:00:25]} b5 {[%emt 0:03:09]} 26. Bf1 {[%emt 0:01:00]} exd4 {[%emt 0:00:24]} 27. cxd4 {[%emt 0:00:52]} Rfe8 {[%emt 0:00:17]} 28. f3 {[%emt 0:05:06]} a6 $18 {[%emt 0:01:50]} 29. h4 {[%emt 0:01:32]} Nh7 {[%emt 0:03:09]} 30. f4 {[%emt 0:03:09]} Nf6 {[%emt 0:02:22]} 31. Kf3 {[%emt 0:03:41]} d5 {[%emt 0:02:17]} 32. e5 {[%emt 0:01:37]} Nd7 {[%emt 0:01:13]} 33. f5 {[%emt 0:01:45]} Ngf8 {[%emt 0:03:35]} 34. Bh3 {[%emt 0:01:21]} Nb6 {[%emt 0:06:08]} 35. e6 {[%emt 0:02:03]} fxe6 {[%emt 0:00:12]} 36. fxe6 {[%emt 0:00:06]} Ng6 {[%emt 0:00:09]} 37. e7 {[%emt 0:00:45]} Rb8 {[%emt 0:00:32]} 38. Re6 {[%emt 0:02:14]} Na4 {[%emt 0:01:01]} 39. Bd6 {[%emt 0:00:30]} Nc3 {[%emt 0:00:37]} 40. Rde1 {[%emt 0:00:51]} Rb7 {[%emt 0:00:07]} 41. Rxg6 {[%emt 0:00:15]} Ne4 {[%emt 0:00:19]} 42. Rxe4 {[%emt 0:02:27]} dxe4+ {[%emt 0:00:18]} 43. Kxe4 {[%emt 0:00:05]} b4 {[%emt 0:02:30]} 44. Re6 {[%emt 0:00:41]} a5 {[%emt 0:00:17]} 45. Bf5 {[%emt 0:01:04]} a4 {[%emt 0:00:54]} 46. Bg6 {[%emt 0:00:28]} 1-0

[Event "FRA-ch Youth U12 2018"]
[Site "Agen"]
[Date "2018.04.18"]
[Round "5"]
[White "Foughali, Younes"]
[Black "Razafindratsima, Timothe"]
[Result "0-1"]
[ECO "B51"]
[WhiteElo "1660"]
[BlackElo "2146"]
[Annotator "NA"]
[PlyCount "112"]
[EventDate "2018.??.??"]
[EventType "swiss"]
[EventCountry "FRA"]
[SourceTitle "playchess.com"]
[Source "ChessBase"]
[SourceQuality "1"]
[TimeControl "5400+30"]

1. e4 {[%emt 0:00:00]} c5 {[%emt 0:00:06]} 2. Nf3 {[%emt 0:00:00]} d6 {[%emt 0:00:08]} 3. Bb5+ {[%emt 0:00:00]} Nd7 {[%emt 0:00:08]} 4. c3 {[%emt 0:00:00]} a6 {[%emt 0:00:49]} 5. Ba4 {[%emt 0:00:00]} Ngf6 {[%emt 0:00:54]} 6. Qe2 {[%emt 0:01:28]} e6 {[%emt 0:01:30]} 7. O-O {[%emt 0:00:07]} b5 {[%emt 0:00:25]} 8. Bc2 {[%emt 0:00:09]} Bb7 {[%emt 0:01:57]} 9. d4 {[%emt 0:01:51] LiveBook: 75 Games B51: Sicilian: Moscow Variation (3 Bb5+) without 3...Bd7} Be7 {[%emt 0:00:31]} 10. Bf4 {[%emt 0:01:55]} (10. Nbd2 O-O 11. Re1 Qc7 12. Nf1 Rac8 13. Bb1 cxd4 14. cxd4 e5 15. d5 b4 16. Be3 Nc5 {0-1 (49) Anton Guijarro,D (2666)-Salem,A (2638) Riadh 2017}) 10... cxd4 {[%emt 0:03:14]} 11. cxd4 {[%emt 0:00:06]} Rc8 {[%emt 0:00:18]} 12. a3 $146 {[%emt 0:01:20]} ({Predecessor:} 12. Nc3 b4 13. Na4 O-O 14. Bd3 Qa5 15. b3 d5 16. e5 Ne4 {0-1 (40) Van der Zwet,B (2100)-Bates,R (2332) Bunratty 2016}) 12... O-O {[%emt 0:03:20]} 13. Nc3 {[%emt 0:00:11]} Nb6 {[%emt 0:01:27]} 14. Rac1 {[%emt 0:11:50]} Qd7 {[%emt 0:06:21]} 15. Bb3 {[%emt 0:02:40]} a5 {[%emt 0:11:43]} 16. e5 {[%emt 0:32:14]} Nfd5 {[%emt 0:03:57]} 17. Nxd5 {[%emt 0:00:29]} Bxd5 {[%emt 0:10:04]} 18. exd6 {[%emt 0:01:26]} Bxf3 {[%emt 0:18:11]} 19. Qxf3 {[%emt 0:00:52]} Bxd6 {[%emt 0:02:04]} 20. Bxd6 {[%emt 0:02:23]} Qxd6 {[%emt 0:00:27]} 21. Qd3 {[%emt 0:01:38]} Qd7 {[%emt 0:01:02]} 22. h3 {[%emt 0:02:27]} Rfd8 {[%emt 0:01:36]} 23. Rxc8 {[%emt 0:03:00]} Rxc8 {[%emt 0:02:01]} 24. Rd1 {[%emt 0:00:17]} g6 $11 {[%emt 0:00:46]} 25. Qf3 {[%emt 0:03:39]} a4 {[%emt 0:02:23]} 26. Ba2 {[%emt 0:01:03]} Nd5 {[%emt 0:11:00]} 27. Bxd5 {[%emt 0:00:30]} Qxd5 28. Qxd5 {[%emt 0:00:09]} exd5 {[%emt 0:04:26]} 29. Rd2 {[%emt 0:00:19]} Kf8 {[%emt 0:00:15]} 30. Kf1 {[%emt 0:00:06]} Ke7 {[%emt 0:00:06]} 31. Ke2 {[%emt 0:00:18]} Kd6 {[%emt 0:01:43]} 32. Kd3 {[%emt 0:00:34]} b4 {[%emt 0:02:48]} 33. Rc2 {[%emt 0:02:54]} Rb8 {[%emt 0:00:37]} 34. axb4 {[%emt 0:02:34]} Rxb4 {[%emt 0:00:11]} 35. Kc3 {[%emt 0:00:50]} Rc4+ {[%emt 0:01:08]} 36. Kd3 {[%emt 0:00:16]} Rxc2 {[%emt 0:00:35]} 37. Kxc2 {[%emt 0:00:08]} Kc6 {[%emt 0:00:21]} 38. b3 {[%emt 0:03:29]} Kb5 {[%emt 0:03:04]} 39. Kb2 {[%emt 0:02:40]} Kb4 {[%emt 0:00:09]} 40. bxa4 {[%emt 0:00:10]} Kxa4 {[%emt 0:00:04]} 41. Kc3 {[%emt 0:01:24]} Ka3 {[%emt 0:00:53]} 42. g4 {[%emt 0:03:37]} g5 {[%emt 0:00:23]} 43. f3 {[%emt 0:01:31]} f6 {[%emt 0:00:34]} 44. Kd3 {[%emt 0:00:38]} Kb3 {[%emt 0:00:14]} 45. Ke3 {[%emt 0:00:47]} Kc3 {[%emt 0:00:06]} 46. f4 {[%emt 0:00:21]} h6 {[%emt 0:00:12]} 47. f5 {[%emt 0:01:12]} Kc4 {[%emt 0:00:06]} 48. Ke2 {[%emt 0:00:16]} Kxd4 {[%emt 0:00:06]} 49. Kd2 {[%emt 0:00:04]} Ke4 {[%emt 0:00:08]} 50. Ke2 {[%emt 0:00:10]} d4 {[%emt 0:00:19]} 51. Kd2 {[%emt 0:00:06]} d3 {[%emt 0:00:04]} 52. Kd1 {[%emt 0:00:11]} Ke3 {[%emt 0:00:05]} 53. Ke1 {[%emt 0:00:08]} d2+ {[%emt 0:00:11]} 54. Kd1 {[%emt 0:00:08]} Kd3 {[%emt 0:00:15]} 55. h4 {[%emt 0:00:17]} gxh4 {[%emt 0:00:04]} 56. g5 {[%emt 0:00:04]} h3 {[%emt 0:00:08]} 0-1

[Event "FRA-ch Youth U12 2018"]
[Site "Agen"]
[Date "2018.04.18"]
[Round "5"]
[White "Cornileau, Juliette"]
[Black "Pentcheff, Laura"]
[Result "1-0"]
[ECO "B09"]
[WhiteElo "1654"]
[BlackElo "1512"]
[Annotator "NA"]
[PlyCount "87"]
[EventDate "2018.??.??"]
[EventType "swiss"]
[EventCountry "FRA"]
[SourceTitle "playchess.com"]
[Source "ChessBase"]
[SourceQuality "1"]
[TimeControl "5400+30"]

1. e4 {[%emt 0:00:00]} d6 {[%emt 0:00:13]} 2. d4 {[%emt 0:00:00]} Nf6 {[%emt 0:00:05]} 3. Nc3 {[%emt 0:00:00]} g6 {[%emt 0:00:08]} 4. f4 {[%emt 0:00:01]} Bg7 {[%emt 0:00:17]} 5. Nf3 {[%emt 0:00:17]} O-O {[%emt 0:00:11]} 6. e5 {[%emt 0:00:19]} dxe5 {[%emt 0:00:46]} 7. fxe5 {[%emt 0:00:12]} Nd5 {[%emt 0:01:22]} 8. Bc4 {[%emt 0:00:09]} Nxc3 {[%emt 0:01:10]} 9. bxc3 {[%emt 0:00:10]} c6 {[%emt 0:03:44]} 10. Bf4 {[%emt 0:05:07]} b5 {[%emt 0:03:24]} 11. Bb3 {[%emt 0:01:41]} h6 {[%emt 0:11:19]} 12. O-O {[%emt 0:09:58]} e6 {[%emt 0:02:49]} 13. Nd2 {[%emt 0:07:20]} Nd7 {[%emt 0:03:37]} 14. Ne4 {[%emt 0:01:34]} Qb6 {[%emt 0:01:42]} 15. Kh1 {[%emt 0:01:46]} c5 {[%emt 0:03:30]} 16. dxc5 {[%emt 0:02:26]} Nxc5 {[%emt 0:00:48]} 17. Be3 {[%emt 0:00:51]} Rd8 {[%emt 0:02:17]} 18. Qf3 {[%emt 0:02:28]} Qb7 {[%emt 0:19:17]} 19. Nxc5 {[%emt 0:02:56]} Qxf3 {[%emt 0:00:26]} 20. Rxf3 {[%emt 0:00:35]} a5 {[%emt 0:01:03]} 21. a4 {[%emt 0:00:26]} Bxe5 {[%emt 0:00:38]} 22. Bxh6 {[%emt 0:01:05]} b4 {[%emt 0:00:41]} 23. Raf1 {[%emt 0:00:47]} Ra7 {[%emt 0:04:49]} 24. cxb4 {[%emt 0:00:35]} axb4 {[%emt 0:00:09]} 25. Nd3 {[%emt 0:00:19]} Bc3 {[%emt 0:00:19]} 26. Bg5 {[%emt 0:02:01]} Rd6 {[%emt 0:02:26]} 27. Bf6 {[%emt 0:01:17]} Bxf6 {[%emt 0:02:53]} 28. Rxf6 {[%emt 0:00:13]} Rad7 {[%emt 0:00:26]} 29. h3 {[%emt 0:00:37]} Ba6 {[%emt 0:00:46]} 30. R1f4 {[%emt 0:05:04]} Bxd3 {[%emt 0:01:19]} 31. cxd3 {[%emt 0:00:07]} Rxd3 {[%emt 0:00:17]} 32. Rxb4 {[%emt 0:00:33]} Rg3 {[%emt 0:00:33]} 33. Rf3 {[%emt 0:00:31]} Rxf3 {[%emt 0:00:38]} 34. gxf3 {[%emt 0:00:06]} Rd3 {[%emt 0:00:30]} 35. Kg2 {[%emt 0:00:09]} Kf8 {[%emt 0:00:55]} 36. a5 {[%emt 0:00:11]} Rd8 {[%emt 0:00:35]} 37. a6 {[%emt 0:00:13]} Ra8 {[%emt 0:00:20]} 38. Bc4 {[%emt 0:00:05]} Kg7 {[%emt 0:00:18]} 39. Rb7 {[%emt 0:00:28]} Kf6 {[%emt 0:00:21]} 40. a7 {[%emt 0:00:09]} Ke5 {[%emt 0:00:24]} 41. Rxf7 {[%emt 0:00:06]} Kd6 {[%emt 0:00:31]} 42. Bd3 {[%emt 0:00:20]} Ke5 {[%emt 0:00:40]} 43. Be4 {[%emt 0:00:07]} Rxa7 {[%emt 0:00:20]} 44. Rxa7 1-0

[Event "FRA-ch Youth U12 2018"]
[Site "Agen"]
[Date "2018.04.18"]
[Round "5"]
[White "Schebacher, Solene"]
[Black "Micheli, Elora"]
[Result "1/2-1/2"]
[ECO "B23"]
[WhiteElo "1396"]
[BlackElo "1438"]
[Annotator "NA"]
[PlyCount "104"]
[EventDate "2018.??.??"]
[EventType "swiss"]
[EventCountry "FRA"]
[SourceTitle "playchess.com"]
[Source "ChessBase"]
[SourceQuality "1"]
[TimeControl "5400+30"]

1. e4 {[%emt 0:00:00]} c5 {[%emt 0:00:24]} 2. Nc3 {[%emt 0:00:06]} e6 {[%emt 0:00:25]} 3. g3 {[%emt 0:01:02]} Nc6 {[%emt 0:01:22]} 4. Bg2 {[%emt 0:02:02]} Nf6 {[%emt 0:02:09]} 5. d3 {[%emt 0:01:59]} d6 {[%emt 0:01:57]} 6. Nge2 {[%emt 0:03:14]} e5 {[%emt 0:02:54]} 7. Bg5 {[%emt 0:06:11]} Be7 {[%emt 0:05:47]} 8. Bxf6 {[%emt 0:04:57]} Bxf6 {[%emt 0:02:15]} 9. Nd5 {[%emt 0:00:33]} Be6 {[%emt 0:01:33]} 10. Nec3 {[%emt 0:05:02]} Nd4 {[%emt 0:02:41]} 11. O-O {[%emt 0:02:31]} O-O {[%emt 0:03:17]} 12. Nxf6+ Qxf6 {[%emt 0:00:28]} 13. f4 {[%emt 0:07:26]} exf4 {[%emt 0:07:04]} 14. Rxf4 {[%emt 0:00:35]} Qg5 {[%emt 0:00:24]} 15. Qd2 {[%emt 0:05:27]} Bh3 16. Rd1 {[%emt 0:04:09]} Bxg2 {[%emt 0:06:40]} 17. Kxg2 {[%emt 0:03:40]} Rfe8 {[%emt 0:04:53]} 18. Rdf1 {[%emt 0:03:46]} Ne6 {[%emt 0:03:50]} 19. R4f2 {[%emt 0:00:42]} Qxd2 {[%emt 0:01:23]} 20. Rxd2 {[%emt 0:00:11]} Nd4 {[%emt 0:00:39]} 21. Nd5 {[%emt 0:01:34]} Rac8 {[%emt 0:00:36]} 22. Rdf2 {[%emt 0:00:55]} f6 {[%emt 0:00:45]} 23. c3 {[%emt 0:01:33]} Ne6 {[%emt 0:01:40]} 24. Nf4 {[%emt 0:02:12]} c4 {[%emt 0:01:44]} 25. Rd2 {[%emt 0:02:34]} cxd3 {[%emt 0:00:28]} 26. Rxd3 {[%emt 0:00:18]} Nc5 {[%emt 0:00:45]} 27. Rxd6 {[%emt 0:01:34]} Nxe4 {[%emt 0:00:53]} 28. Rd7 {[%emt 0:02:06]} Nc5 {[%emt 0:00:49]} 29. Rdd1 {[%emt 0:00:42]} Na4 {[%emt 0:02:10]} 30. Rd2 {[%emt 0:01:14]} Rcd8 {[%emt 0:01:02]} 31. Rfd1 {[%emt 0:00:54]} Rc8 {[%emt 0:05:31]} 32. Kf2 {[%emt 0:03:45]} Nc5 {[%emt 0:02:00]} 33. Kf1 {[%emt 0:01:30]} Kf7 {[%emt 0:03:41]} 34. Nd3 {[%emt 0:03:04]} Ne4 {[%emt 0:00:54]} 35. Re2 {[%emt 0:00:53]} Re7 {[%emt 0:00:30]} 36. Nf2 {[%emt 0:01:26]} Nxf2 {[%emt 0:03:05]} 37. Kxf2 {[%emt 0:00:11]} Rxe2+ {[%emt 0:01:07]} 38. Kxe2 {[%emt 0:00:10]} Re8+ {[%emt 0:00:06]} 39. Kf2 {[%emt 0:00:34]} Re7 {[%emt 0:00:38]} 40. Rd8 {[%emt 0:00:36]} b6 {[%emt 0:00:33]} 41. Rd4 {[%emt 0:01:29]} g5 {[%emt 0:00:42]} 42. h4 h5 43. hxg5 {[%emt 0:04:20]} fxg5 {[%emt 0:01:20]} 44. Kf3 {[%emt 0:01:43]} Kg7 {[%emt 0:01:51]} 45. Kf2 {[%emt 0:01:30]} Kf6 {[%emt 0:02:12]} 46. c4 {[%emt 0:00:16]} Rf7 {[%emt 0:01:13]} 47. Kg2 {[%emt 0:01:00]} Kf5 {[%emt 0:00:56]} 48. b3 {[%emt 0:01:43]} Re7 {[%emt 0:00:39]} 49. Kf2 {[%emt 0:00:39]} Rf7 {[%emt 0:00:17]} 50. Kg2 {[%emt 0:00:09]} Re7 {[%emt 0:00:13]} 51. Kf2 {[%emt 0:01:37]} Rf7 {[%emt 0:00:31]} 52. Kg2 {[%emt 0:01:14]} Re7 {[%emt 0:00:15]} 1/2-1/2

[Event "FRA-ch Youth U12 2018"]
[Site "Agen"]
[Date "2018.04.18"]
[Round "5"]
[White "Costa, My-Lan"]
[Black "Forges-Boulanger, Julie"]
[Result "1/2-1/2"]
[ECO "B13"]
[WhiteElo "1360"]
[BlackElo "1227"]
[Annotator "NA"]
[PlyCount "66"]
[EventDate "2018.??.??"]
[EventType "swiss"]
[EventCountry "FRA"]
[SourceTitle "playchess.com"]
[Source "ChessBase"]
[SourceQuality "1"]
[TimeControl "5400+30"]

1. e4 {[%emt 0:00:00]} c6 {[%emt 0:00:06]} 2. d4 {[%emt 0:00:00]} d5 {[%emt 0:00:09]} 3. exd5 {[%emt 0:00:00]} cxd5 {[%emt 0:00:14]} 4. c4 {[%emt 0:00:15]} Nf6 {[%emt 0:01:03]} 5. Nc3 {[%emt 0:00:32]} Bf5 {[%emt 0:01:17]} 6. Nf3 {[%emt 0:02:08]} e6 {[%emt 0:01:52]} 7. Bf4 {[%emt 0:03:11]} Bd6 {[%emt 0:02:19]} 8. Bxd6 {[%emt 0:01:00]} Qxd6 {[%emt 0:00:08]} 9. Be2 {[%emt 0:02:27]} O-O {[%emt 0:01:32]} 10. O-O {[%emt 0:00:29]} Nc6 {[%emt 0:02:38]} 11. Rc1 {[%emt 0:04:56]} dxc4 {[%emt 0:08:19]} 12. Bxc4 {[%emt 0:01:29]} Bg4 {[%emt 0:08:08]} 13. Be2 {[%emt 0:21:53]} Bxf3 {[%emt 0:10:20]} 14. Bxf3 {[%emt 0:00:20]} Qxd4 {[%emt 0:08:20]} 15. Bxc6 {[%emt 0:04:46]} Qxd1 {[%emt 0:01:58]} 16. Nxd1 {[%emt 0:00:53]} bxc6 {[%emt 0:00:45]} 17. Rxc6 {[%emt 0:00:55]} Rfc8 {[%emt 0:03:31]} 18. Rxc8+ {[%emt 0:00:43]} Rxc8 {[%emt 0:00:17]} 19. Nc3 {[%emt 0:00:14]} Rd8 {[%emt 0:28:34]} 20. Rd1 {[%emt 0:01:16]} Rxd1+ {[%emt 0:01:06]} 21. Nxd1 {[%emt 0:00:09]} Kf8 {[%emt 0:00:48]} 22. Kf1 {[%emt 0:00:20]} Ke7 {[%emt 0:00:25]} 23. Ke2 {[%emt 0:00:07]} Kd6 {[%emt 0:00:28]} 24. Ne3 {[%emt 0:00:34]} Kc5 {[%emt 0:01:45]} 25. a3 {[%emt 0:01:03]} Nd5 {[%emt 0:11:12]} 26. Nxd5 {[%emt 0:02:18]} exd5 {[%emt 0:02:04]} 27. Kd3 {[%emt 0:00:06]} a5 {[%emt 0:01:41]} 28. Kc3 f5 {[%emt 0:02:33]} 29. b4+ {[%emt 0:01:31]} axb4+ {[%emt 0:00:31]} 30. axb4+ {[%emt 0:00:06]} Kb5 {[%emt 0:00:39]} 31. Kd4 {[%emt 0:00:27]} Kxb4 {[%emt 0:00:17]} 32. Kxd5 {[%emt 0:00:00]} Kc3 33. Ke5 g6 1/2-1/2

[Event "FRA-ch Youth U12 2018"]
[Site "Agen"]
[Date "2018.04.18"]
[Round "5"]
[White "Fougerat, Emma"]
[Black "Berezovsky, Fiorina"]
[Result "0-1"]
[ECO "A00"]
[WhiteElo "1271"]
[BlackElo "1678"]
[Annotator "NA"]
[PlyCount "76"]
[EventDate "2018.??.??"]
[EventType "swiss"]
[EventCountry "FRA"]
[SourceTitle "playchess.com"]
[Source "ChessBase"]
[SourceQuality "1"]
[TimeControl "5400+30"]

1. g3 {[%emt 0:00:00]} d5 {[%emt 0:01:38]} 2. Bg2 {[%emt 0:00:15]} c5 {[%emt 0:01:19]} 3. c4 {[%emt 0:02:25]} Nf6 {[%emt 0:02:36]} 4. cxd5 {[%emt 0:01:35]} Nxd5 {[%emt 0:00:56]} 5. Nf3 {[%emt 0:01:20]} Nc6 {[%emt 0:03:03]} 6. d3 {[%emt 0:03:58]} g6 {[%emt 0:02:10]} 7. Nbd2 {[%emt 0:03:54]} Bg7 {[%emt 0:03:48]} 8. Rb1 {[%emt 0:01:42]} e6 {[%emt 0:03:46]} 9. Nc4 {[%emt 0:06:14]} b5 {[%emt 0:07:12]} 10. Ncd2 {[%emt 0:04:10]} O-O {[%emt 0:03:45]} 11. O-O {[%emt 0:01:32]} Qb6 {[%emt 0:09:39]} 12. a3 {[%emt 0:07:56]} Ba6 {[%emt 0:02:23]} 13. Qc2 {[%emt 0:05:51]} Rac8 {[%emt 0:03:22]} 14. Ne4 {[%emt 0:04:55]} Ne5 {[%emt 0:05:05]} 15. Bf4 {[%emt 0:04:23]} Nxf4 {[%emt 0:02:36]} 16. gxf4 {[%emt 0:00:14]} Nxf3+ {[%emt 0:01:32]} 17. Bxf3 {[%emt 0:00:22]} e5 {[%emt 0:02:00]} 18. fxe5 {[%emt 0:01:01]} Bxe5 {[%emt 0:01:52]} 19. b3 {[%emt 0:03:45]} b4 {[%emt 0:03:44]} 20. a4 {[%emt 0:01:20]} f5 {[%emt 0:03:56]} 21. Ng3 {[%emt 0:03:44]} Bb7 {[%emt 0:02:42]} 22. Bxb7 {[%emt 0:03:03]} Qxb7 {[%emt 0:00:42]} 23. Rbc1 {[%emt 0:01:45]} Bc3 {[%emt 0:06:01]} 24. Rfd1 {[%emt 0:03:34]} Qd7 {[%emt 0:02:43]} 25. Qb1 {[%emt 0:02:13]} f4 {[%emt 0:02:13]} 26. Ne4 {[%emt 0:01:28]} Qg4+ {[%emt 0:01:21]} 27. Kh1 {[%emt 0:03:39]} Qxe2 {[%emt 0:01:22]} 28. Rg1 {[%emt 0:03:20]} Bd4 {[%emt 0:04:13]} 29. Qc2 {[%emt 0:00:41]} Qf3+ {[%emt 0:01:23]} 30. Rg2 {[%emt 0:00:21]} Kh8 {[%emt 0:04:41]} 31. Qd1 {[%emt 0:01:27]} Qxd1+ {[%emt 0:00:31]} 32. Rxd1 {[%emt 0:00:01]} Rcd8 {[%emt 0:01:01]} 33. Rg5 {[%emt 0:01:19]} Rf5 {[%emt 0:02:14]} 34. Rxf5 {[%emt 0:00:22]} gxf5 {[%emt 0:00:01]} 35. f3 {[%emt 0:00:01]} fxe4 {[%emt 0:00:04]} 36. fxe4 {[%emt 0:00:34]} f3 {[%emt 0:00:31]} 37. Rf1 {[%emt 0:00:24]} Rg8 {[%emt 0:00:40]} 38. e5 {[%emt 0:00:40]} f2 {[%emt 0:00:22]} 0-1